bitfinex-derivatives/quotes_ETHF0:USTF0_20250614
["timestamp","ask_amount","ask_price","bid_price","bid_amount"]
[1749932644160,0.79845,2503.9,2503.4,6.643]
[1749932644354,4.00622,2504.0,2503.8,0.79845]
[1749932644550,4.00622,2504.0,2503.9,0.79844]
[1749932644551,3.2078,2504.0,2503.9,0.79844]
[1749932644760,4.00621,2504.0,2503.8,0.79845]
[1749932644958,0.79844,2503.9,2503.8,0.79845]
[1749932645156,3.2078,2504.0,2503.4,6.643]
[1749932645351,0.79849,2503.8,2503.7,0.7985]
[1749932645556,0.79845,2503.9,2503.8,0.79847]
[1749932645760,3.2078,2504.0,2503.5,24.945]
[1749932645958,3.2078,2504.0,2503.8,0.79847]
[1749932646258,0.79845,2503.9,2503.7,0.79848]
[1749932646459,0.79845,2503.9,2503.8,0.79847]
[1749932646655,0.79845,2503.9,2503.7,0.79848]
[1749932646862,3.2078,2504.0,2503.6,0.79852]
[1749932647162,0.79847,2503.9,2503.7,0.79849]
[1749932647364,0.79847,2503.8,2503.7,0.7985]
[1749932647558,0.79845,2503.9,2503.7,0.7985]
[1749932648158,0.79847,2503.8,2503.4,32.9322]
[1749932648663,3.2078,2504.0,2503.4,32.9322]
[1749932648664,0.79846,2503.9,2503.7,0.79848]
[1749932648865,0.79846,2503.9,2503.8,0.79847]
[1749932649062,0.79847,2503.8,2503.7,0.79849]
[1749932649264,0.79851,2503.7,2503.5,0.79856]
[1749932649466,3.2078,2504.0,2503.5,1.3402]
[1749932649657,0.79846,2503.9,2503.5,1.3402]
[1749932650062,0.79846,2503.9,2503.7,0.79848]
[1749932650354,0.79847,2503.8,2503.7,0.79848]
[1749932650556,0.79846,2503.9,2503.7,0.79848]
[1749932650758,3.2078,2504.0,2503.7,0.79848]
[1749932651055,7.7301,2503.9,2503.3,0.6663]
[1749932651362,1.99663,2503.3,2502.5,6.637]
[1749932651563,3.2078,2503.1,2502.5,6.637]
[1749932651753,0.79882,2502.7,2502.6,1.305]
[1749932652067,3.2078,2502.8,2502.7,0.79882]
[1749932652258,3.2078,2502.8,2502.6,1.305]
[1749932652456,3.2078,2502.8,2502.7,0.79882]
[1749932652658,3.2078,2502.8,2502.6,1.305]
[1749932652862,4.0066,2502.8,2502.6,2.10384]
[1749932653258,3.2078,2502.8,2502.7,0.79882]
[1749932653665,3.2078,2502.8,2502.6,2.10384]
[1749932653863,4.00661,2502.8,2502.6,2.10384]
[1749932654061,0.79882,2502.7,2502.6,1.305]
[1749932654261,0.79885,2502.6,2502.5,31.591]
[1749932654569,4.00661,2502.8,2502.6,0.79885]
[1749932654760,3.2078,2502.8,2502.7,0.79882]
[1749932655259,3.2078,2502.8,2502.6,1.2996]
[1749932655455,3.2078,2502.8,2502.7,0.79882]
[1749932655658,3.2078,2502.8,2502.6,1.2996]
[1749932655659,3.21378886,2503.2,2503.1,0.79869]
[1749932655863,0.00598886,2503.2,2503.1,0.79869]
[1749932656155,0.6276,2503.9,2503.8,0.79847]
[1749932656359,1.48247,2504.1,2503.5,24.956]
[1749932656561,0.6841,2504.1,2503.6,2.0068]
[1749932656763,0.79835,2504.2,2504.0,0.79838]
[1749932657265,4.63372,2504.3,2504.1,0.79837]
[1749932657565,0.79834,2504.2,2504.0,0.79838]
[1749932658067,0.79837,2504.1,2503.9,0.79844]
[1749932658359,0.79839,2504.1,2503.9,2.17822]
[1749932658960,0.79839,2504.1,2504.0,0.7984]
[1749932659271,0.79837,2504.1,2504.0,0.40905013]
[1749932659557,3.2078,2504.3,2504.1,0.79836]
[1749932659765,4.00613,2504.3,2504.1,0.79836]
[1749932660061,0.79834,2504.2,2504.0,0.79838]
[1749932660369,3.2078,2504.3,2504.2,0.79834]
[1749932661267,0.80427886,2504.4,2504.2,0.79834]
[1749932661764,0.00598886,2504.4,2504.3,0.79831]
[1749932662465,0.00598886,2504.4,2504.3,2.10361]
[1749932665266,0.00598886,2504.4,2504.3,7.10361]
[1749932665662,3.2078,2504.9,2504.8,0.79815]
[1749932665868,3.2078,2504.9,2504.3,1.3053]
[1749932666166,0.79834,2504.2,2504.1,33.02365]
[1749932666460,0.79833,2504.3,2504.2,0.79834]
[1749932666665,0.79829,2504.4,2504.3,0.79831]
[1749932666866,0.00598886,2504.5,2504.4,0.79828]
[1749932667257,0.79829,2504.4,2504.2,1.3315]
[1749932667458,0.79831,2504.3,2504.2,1.3315]
[1749932667659,0.79834,2504.2,2504.1,0.6343]
[1749932668163,3.2078,2504.3,2504.1,0.6343]
[1749932668464,3.2078,2504.3,2504.2,0.79834]
[1749932669766,4.00611,2504.3,2504.2,0.79834]
[1749932669973,0.79834,2504.2,2504.1,0.6343]
[1749932670275,4.00612,2504.3,2504.2,0.79834]
[1749932670468,3.2078,2504.3,2504.2,0.79834]
[1749932670972,5.734,2504.4,2504.3,0.79831]
[1749932671474,0.00598886,2504.5,2504.1,4.5046]
[1749932671670,0.79834,2504.3,2504.2,0.79832]
[1749932672070,0.7983,2504.4,2504.3,0.7983]
[1749932673674,0.80425886,2504.5,2504.4,0.79828]
[1749932673878,1.10343059,2504.5,2504.4,0.79828]
[1749932674070,0.00598886,2504.5,2504.4,0.79828]
[1749932674272,0.00598886,2504.5,2504.4,37.37828]
[1749932674470,3.2078,2504.9,2504.8,0.79815]
[1749932674767,3.2078,2505.2,2504.9,0.7981]
[1749932674971,0.79807,2505.1,2504.8,6.632]
[1749932675166,4.00583,2505.2,2505.1,0.79805]
[1749932675868,0.79805,2505.1,2505.0,1.48849]
[1749932677078,4.00584,2505.2,2505.1,0.79805]
[1749932677972,4.00584,2505.2,2505.0,0.6904]
[1749932678277,4.00584,2505.2,2505.1,0.79805]
[1749932678577,0.79805,2505.1,2505.0,1.48847]
[1749932679586,3.2078,2505.2,2505.1,0.79805]
[1749932679875,5.73998886,2505.4,2505.3,0.79799]
[1749932680273,6.53794886,2505.4,2505.3,0.79799]
[1749932680965,0.79801,2505.3,2505.2,0.79801]
[1749932681169,5.73998886,2505.4,2505.3,0.79799]
[1749932682476,5.73998886,2505.4,2505.1,1.3513]
[1749932682678,0.79805,2505.1,2505.0,1.48845]
[1749932682980,0.79805,2505.2,2505.1,0.79803]
[1749932683177,0.79801,2505.3,2505.2,0.798]
[1749932683374,0.00598886,2505.4,2505.3,0.79799]
[1749932683676,0.00598886,2505.4,2505.3,2.16299]
[1749932684674,0.00598886,2505.4,2505.2,6.63]
[1749932684872,0.00598886,2505.4,2505.0,0.6904]
[1749932685069,0.79802,2505.3,2505.2,0.798]
[1749932685476,0.00598886,2505.4,2505.1,6.63]
[1749932685676,0.00598886,2505.4,2505.3,0.79799]
[1749932685874,0.00598886,2505.4,2505.3,4.00579]
[1749932686077,6.3716,2506.1,2506.0,0.79777]
[1749932686281,0.6376,2506.1,2506.0,0.79777]
[1749932686488,0.6376,2506.1,2505.9,0.79778]
[1749932686781,0.79779,2506.0,2505.9,0.79778]
[1749932686978,1.99443,2506.0,2505.7,0.00598886]
[1749932687187,4.00563,2505.8,2505.7,0.00598886]
[1749932687576,6.40002195,2505.8,2505.7,0.00598886]
[1749932687978,11.40002195,2505.8,2505.7,0.00598886]
[1749932689780,6.40002195,2505.8,2505.7,0.00598886]
[1749932692182,5.10452195,2505.8,2505.7,0.00598886]
[1749932692700,4.00563,2505.8,2505.7,0.00598886]
[1749932695888,4.00563,2505.8,2505.7,8.86e-06]
[1749932696080,5.10460312,2505.8,2505.7,8.86e-06]
[1749932697088,10.83860312,2505.8,2505.7,8.86e-06]
[1749932699888,22.46760312,2505.8,2505.7,8.86e-06]
[1749932700094,0.79815,2504.8,2504.7,0.6319]
[1749932700291,0.79825,2504.5,2504.4,2.0449]
[1749932700588,0.79828,2504.4,2504.3,0.653]
[1749932700783,0.79828,2504.4,2504.3,1.45131]
[1749932701183,0.00598886,2504.6,2504.3,1.45131]
[1749932701184,0.00598886,2504.6,2504.3,0.653]
[1749932701383,0.80421886,2504.6,2504.5,0.79825]
[1749932701782,0.79825,2504.5,2504.4,0.79826]
[1749932701990,0.80422886,2504.6,2504.5,0.79825]
[1749932702291,0.00598886,2504.6,2504.5,0.79825]
[1749932702487,5.734,2505.0,2504.9,0.79812]
[1749932702792,5.734,2505.0,2504.8,0.79813]
[1749932703091,0.79815,2504.8,2504.7,7.975]
[1749932703288,5.734,2505.0,2504.9,0.79812]
[1749932703597,4.01182886,2505.2,2505.1,0.79805]
[1749932703788,3.21378886,2505.2,2505.1,0.79805]
[1749932703988,3.21378886,2505.2,2505.1,7.42705]
[1749932704484,4.01180886,2505.2,2505.1,6.629]
[1749932704784,0.79812,2504.9,2504.8,2.01]
[1749932705185,0.79811,2505.0,2504.8,2.01]
[1749932705386,0.79812,2504.9,2504.8,2.01]
[1749932706193,0.79812,2504.9,2504.8,2.80815]
[1749932707484,3.84118886,2505.2,2504.8,2.01]
[1749932707696,3.21378886,2505.2,2505.1,0.79805]
[1749932708095,3.2078,2505.5,2505.4,0.79796]
[1749932708294,0.79793,2505.5,2505.4,0.79793]
[1749932708494,0.79793,2505.5,2505.4,7.42293]
[1749932708694,0.79793,2505.5,2505.4,8.67833]
[1749932709095,0.79796,2505.4,2505.3,2.11147]
[1749932709298,0.79795,2505.5,2505.4,0.79794]
[1749932709493,0.79796,2505.4,2505.3,9.1939]
[1749932709694,0.79796,2505.4,2505.3,9.99189]
[1749932710293,0.79796,2505.4,2505.3,8.10789]
[1749932710592,0.79796,2505.4,2505.3,0.6849]
[1749932710789,0.79795,2505.5,2505.4,0.79794]
[1749932711191,0.79796,2505.4,2505.3,7.3099]
[1749932711394,0.79792,2505.6,2505.5,0.79791]
[1749932711691,0.80387886,2505.7,2505.4,3.2078]
[1749932711898,0.79789,2505.6,2505.5,2.12481]
[1749932712199,0.80386886,2505.7,2505.6,0.79789]
[1749932712799,0.79789,2505.6,2505.5,2.1248]
[1749932713302,0.79789,2505.6,2505.5,33.6778]
[1749932713797,0.79789,2505.6,2505.5,33.67781]
[1749932714201,0.80386886,2505.7,2505.6,0.7979]
[1749932714603,0.00598886,2505.7,2505.6,0.7979]
[1749932714794,0.80384886,2505.7,2505.6,0.7979]
[1749932715520,0.00598886,2505.7,2505.6,0.7979]
[1749932715714,0.00598886,2505.7,2505.6,1.4597]
[1749932717314,0.79771,2506.2,2506.1,0.7977]
[1749932717511,1.90068615,2506.2,2506.1,0.7977]
[1749932717714,0.79777,2506.0,2505.9,0.6608]
[1749932718014,0.79786,2505.7,2505.6,6.624]
[1749932719015,0.79786,2505.7,2505.6,7.4219]
[1749932719210,0.79786,2505.7,2505.6,6.624]
[1749932719710,0.79786,2505.7,2505.6,7.4219]
[1749932722316,0.79786,2505.7,2505.6,6.624]
[1749932722517,0.79786,2505.7,2505.6,7.4219]
[1749932722910,0.79786,2505.7,2505.6,6.624]
[1749932723117,0.79786,2505.7,2505.6,7.4219]
[1749932723711,0.00394804,2505.9,2505.8,0.79783]
[1749932723917,0.00394804,2505.9,2505.8,25.72083]
[1749932724718,0.00394804,2505.9,2505.8,27.03363]
[1749932724920,0.00394804,2505.9,2505.8,30.24143]
[1749932725423,0.80174804,2505.9,2505.8,5.31843]
[1749932725608,0.80174804,2505.9,2505.8,36.86443]
[1749932726511,0.80174804,2505.9,2505.5,1.99479]
[1749932726512,0.7979,2505.6,2505.5,9.8318]
[1749932726724,0.00394804,2505.9,2505.8,0.79783]
[1749932726922,0.80174804,2505.9,2505.8,0.79783]
[1749932730027,0.00394804,2505.9,2505.8,4.00563]
[1749932730214,0.00394804,2505.9,2505.8,5.91533]
[1749932730411,0.80174804,2505.9,2505.8,5.91533]
[1749932731327,0.00394804,2505.9,2505.8,5.91533]
[1749932733026,0.80174804,2505.9,2505.8,37.45733]
[1749932733221,0.00394804,2505.9,2505.8,37.45733]
[1749932733422,0.80174804,2505.9,2505.8,37.45733]
[1749932733618,0.80174804,2505.9,2505.8,3.2078]
[1749932734620,0.7979,2505.6,2505.5,34.7488]
[1749932735019,0.7979,2505.6,2505.5,35.54673]
[1749932735927,0.79788,2505.7,2505.6,0.79787]
[1749932736233,0.79786,2505.8,2505.7,0.79784]
[1749932736524,0.00394804,2505.9,2505.5,34.7488]
[1749932736724,0.7979,2505.6,2505.5,35.54671]
[1749932737027,0.79787,2505.7,2505.6,0.79786]
[1749932737230,0.79785,2505.8,2505.7,0.79784]
[1749932738027,0.00394804,2505.9,2505.8,0.79783]
[1749932738326,1.1070801,2505.9,2505.8,25.71583]
[1749932738630,0.00394804,2505.9,2505.8,28.92363]
[1749932740524,0.80174804,2505.9,2505.8,28.92363]
[1749932740928,0.00394804,2505.9,2505.8,28.92363]
[1749932742932,5.734,2506.7,2506.2,1.99424]
[1749932743128,5.734,2506.7,2506.5,0.79761]
[1749932743129,2.55548004,2506.6,2506.5,0.79761]
[1749932744432,2.55548004,2506.6,2506.3,24.917]
[1749932744433,0.79763,2506.5,2506.4,0.79761]
[1749932744930,0.79764,2506.4,2506.3,25.71466]
[1749932745128,0.79764,2506.4,2506.3,24.917]
[1749932745629,0.79767,2506.3,2506.2,3.2078]
[1749932745828,0.79767,2506.3,2506.2,35.54048]
[1749932746228,0.79766,2506.4,2506.3,0.79765]
[1749932746430,0.79763,2506.5,2506.4,0.79762]
[1749932746632,0.79763,2506.5,2506.4,25.71162]
[1749932747429,0.6538,2506.6,2506.5,0.79761]
[1749932747731,0.79761,2506.5,2506.4,25.71162]
[1749932748527,0.79761,2506.5,2506.4,24.914]
[1749932749224,1.4514,2506.6,2506.5,0.79761]
[1749932749630,0.79761,2506.5,2506.4,24.914]
[1749932750230,0.79761,2506.5,2506.4,25.71164]
[1749932751237,1.45139,2506.6,2506.5,0.79761]
[1749932752125,5.734,2507.1,2506.8,0.79751]
[1749932752331,1.8992238,2507.0,2506.9,0.79746]
[1749932752723,1.3628,2507.1,2507.0,0.79745]
[1749932753038,2.16022,2507.1,2507.0,0.79745]
[1749932753438,1.3628,2507.1,2507.0,0.79745]
[1749932754139,1.3059,2507.4,2506.9,6.48658]
[1749932754339,0.79737,2507.3,2507.2,0.79736]
[1749932754540,0.79737,2507.3,2507.2,32.32336]
[1749932755041,1.89887906,2507.3,2507.2,32.32336]
[1749932755236,1.89887906,2507.3,2507.2,32.32339]
[1749932755434,1.89887906,2507.3,2507.2,31.526]
[1749932755643,0.79751,2506.8,2506.7,0.00598886]
[1749932755833,0.79751,2506.8,2506.7,32.32953886]
[1749932756533,0.7975,2506.9,2506.8,0.79749]
[1749932756841,0.79747,2507.0,2506.9,0.79746]
[1749932757138,0.79751,2506.9,2506.8,0.7975]
[1749932757537,0.79751,2506.8,2506.7,6.62398886]
[1749932757840,0.79751,2506.8,2506.7,0.00598886]
[1749932758140,1.99411,2506.5,2506.0,6.618]
[1749932758334,0.79774,2506.1,2506.0,6.618]
[1749932759836,5.2268,2506.4,2506.0,6.618]
[1749932760138,0.79774,2506.1,2506.0,7.41576]
[1749932760439,4.68136,2506.4,2506.2,0.79768]
[1749932760640,1.47354,2506.4,2506.3,24.907]
[1749932763542,1.47354,2506.4,2506.3,25.70467]
[1749932763844,3.2078,2506.9,2506.3,24.907]
[1749932764038,4.5361,2506.9,2506.4,8.5748]
[1749932764245,0.79774,2506.1,2506.0,9.8268]
[1749932764446,0.79774,2506.1,2506.0,34.7338]
[1749932766041,0.79774,2506.1,2506.0,35.53157]
[1749932766243,0.79774,2506.1,2506.0,34.7338]
[1749932767444,0.79774,2506.1,2506.0,35.53155]
[1749932768047,0.79774,2506.1,2506.0,35.53157]
[1749932768243,0.7978,2505.9,2505.8,0.00598886]
[1749932768442,0.7978,2505.9,2505.8,24.91298886]
[1749932769053,0.7978,2505.9,2505.8,0.00598886]
[1749932769249,0.7978,2505.9,2505.8,24.91298886]
[1749932769753,0.79779,2506.0,2505.8,24.91298886]
[1749932769944,3.2078,2506.2,2505.9,0.79779]
[1749932770144,0.6707,2506.3,2505.9,3.2078]
[1749932770343,0.6707,2506.3,2506.0,1.9792]
[1749932770540,0.79771,2506.2,2506.1,25.70473]
[1749932770740,0.6707,2506.3,2505.9,3.2078]
[1749932770741,2.6649,2506.3,2505.9,3.2078]
[1749932771055,0.79777,2506.0,2505.9,6.615]
[1749932771256,0.79777,2506.0,2505.9,31.521]
[1749932771848,0.7978,2505.9,2505.8,24.91198886]
[1749932772050,2.784,2505.9,2505.8,0.00598886]
[1749932772850,3.88591916,2505.9,2505.8,0.00598886]
[1749932773050,12.09371916,2505.9,2505.8,0.00598886]
[1749932773249,0.79793,2505.5,2505.4,0.6906]
[1749932773751,0.79793,2505.5,2505.4,25.5966]
[1749932774462,0.79799,2505.3,2505.2,4.01180886]
[1749932774754,0.79798,2505.4,2505.3,0.79798]
[1749932774950,0.79795,2505.5,2505.4,0.79795]
[1749932775347,0.79799,2505.3,2505.2,0.00598886]
[1749932779666,0.79799,2505.3,2505.2,24.91598886]
[1749932783270,5.734,2505.5,2505.2,24.91598886]
[1749932783468,0.80386886,2505.7,2505.6,0.7979]
[1749932783469,0.00598886,2505.7,2505.6,0.7979]
[1749932783667,3.2078,2506.6,2505.6,35.5327]
[1749932783864,0.79766,2506.4,2505.9,3.2078]
[1749932784064,3.2078,2506.6,2506.0,34.1195]
[1749932784261,1.10192076,2506.5,2506.0,36.1139]
[1749932784466,3.2078,2506.6,2506.2,0.79768]
[1749932784665,0.79764,2506.4,2506.3,24.91]
[1749932785672,0.79763,2506.5,2506.4,0.79764]
[1749932785874,0.79764,2506.4,2506.3,24.91]
[1749932787174,3.2078,2506.6,2506.3,25.70767]
[1749932787381,0.79764,2506.4,2506.3,24.91]
[1749932788175,0.79764,2506.4,2506.3,26.2688]
[1749932788677,0.79764,2506.4,2506.3,27.06647]
[1749932789081,0.79764,2506.4,2506.3,26.2688]
[1749932794073,0.79764,2506.4,2506.3,27.06647]
[1749932794280,0.79759,2506.6,2506.5,0.7976]
[1749932794577,0.79762,2506.5,2506.4,7.41363]
[1749932794780,0.79767,2506.3,2506.2,3.2078]
[1749932794983,0.79767,2506.3,2506.2,28.1098]
[1749932795376,0.79767,2506.3,2506.2,3.2078]
[1749932795679,0.79783,2505.8,2505.7,6.616]
[1749932795881,1.99475,2505.7,2505.2,0.00598886]
[1749932796179,0.79799,2505.3,2505.2,0.00598886]
[1749932796787,0.6825,2505.5,2505.2,0.00598886]
[1749932796984,3.2078,2505.8,2505.2,1.36498886]
[1749932797285,4.00565,2505.8,2505.4,3.2078]
[1749932797586,3.2078,2505.8,2505.7,0.79787]
[1749932798084,0.79799,2505.3,2505.2,0.00598886]
[1749932798284,1.89863682,2505.3,2505.2,8.86e-06]
[1749932798488,6.89863682,2505.3,2505.2,8.86e-06]
[1749932798684,3.89803682,2505.3,2505.2,8.86e-06]
[1749932800687,1.48049,2505.3,2505.2,8.86e-06]
[1749932801286,0.79798,2505.4,2505.2,0.79802886]
[1749932801486,3.2078,2505.5,2505.2,8.86e-06]
[1749932801681,0.79796,2505.4,2505.3,1.2592]
[1749932801879,4.00575,2505.5,2505.3,2.05718]
[1749932802594,4.00573,2505.5,2505.4,0.79796]
[1749932802789,4.00573,2505.5,2505.4,1.3485]
[1749932802991,0.79793,2505.5,2505.4,1.3485]
[1749932803191,0.79796,2505.4,2505.3,6.611]
[1749932803391,0.79794,2505.5,2505.3,7.40896]
[1749932803593,0.79796,2505.4,2505.3,8.75746]
[1749932804690,0.79795,2505.5,2505.3,8.75746]
[1749932805887,0.79796,2505.4,2505.3,8.75746]
[1749932806091,0.79795,2505.5,2505.3,8.75746]
[1749932806492,0.79795,2505.5,2505.4,0.79796]
[1749932806992,1.43196,2505.8,2505.3,13.16225]
[1749932807193,0.6341,2505.8,2505.7,0.79786]
[1749932807590,0.79788,2505.7,2505.6,0.79789]
[1749932808394,0.79785,2505.8,2505.7,0.79786]
[1749932809185,5.734,2506.0,2505.7,6.612]
[1749932809389,6.53178,2506.0,2505.9,0.7978]
[1749932809592,0.7978,2505.9,2505.8,2.72483]
[1749932809790,5.734,2506.0,2505.8,2.72483]
[1749932809791,6.53179,2506.0,2505.9,0.7978]
[1749932810698,0.7978,2505.9,2505.8,2.72482]
[1749932811792,6.53179,2506.0,2505.9,0.7978]
[1749932811994,5.734,2506.0,2505.9,0.7978]
[1749932812193,6.53177,2506.0,2505.9,0.7978]
[1749932812390,0.6384,2506.2,2505.8,1.927]
[1749932812594,0.7978,2505.9,2505.8,2.72481]
[1749932813093,0.6384,2506.2,2506.0,0.79774]
[1749932813094,0.79775,2506.1,2506.0,0.79774]
[1749932813296,5.734,2506.4,2506.0,24.901]
[1749932813592,0.79774,2506.1,2506.0,25.69875]
[1749932813798,0.6914,2506.4,2506.0,24.901]
[1749932814096,5.20765886,2506.7,2506.1,6.611]
[1749932814300,1.79132251,2506.6,2506.2,0.79768]
[1749932814596,0.79762,2506.5,2506.4,0.79763]
[1749932815092,0.6914,2506.6,2506.2,1.389]
[1749932815093,0.79767,2506.3,2506.2,1.389]
[1749932816299,0.79767,2506.3,2506.2,2.18671]
[1749932816499,0.7978,2505.9,2505.8,0.6514]
[1749932816698,3.2078,2506.4,2505.8,0.6514]
[1749932816699,0.79778,2506.0,2505.9,0.79778]
[1749932816997,0.7978,2506.0,2505.9,0.79779]
[1749932817197,0.7978,2506.0,2505.9,2.07259]
[1749932817397,0.79776,2506.1,2506.0,0.79776]
[1749932817593,0.79772,2506.2,2506.1,0.79771]
[1749932818495,0.7977,2506.3,2506.0,31.508]
[1749932818698,0.79774,2506.1,2506.0,31.508]
[1749932819498,0.79774,2506.1,2506.0,32.30577]
[1749932819701,0.79773,2506.2,2506.1,0.79772]
[1749932820103,0.79773,2506.2,2506.1,0.79774]
[1749932820294,0.79774,2506.1,2506.0,32.30574]
[1749932820500,0.79774,2506.1,2506.0,32.30374]
[1749932820904,2.6986,2506.6,2506.0,31.506]
[1749932821203,2.17369,2506.6,2506.2,1.99427]
[1749932821403,3.21378886,2506.7,2506.3,26.2381]
[1749932821604,3.21378886,2506.7,2506.5,0.79759]
[1749932821605,0.79759,2506.6,2506.5,0.79759]
[1749932822105,0.00598886,2506.7,2506.6,0.79758]
[1749932822295,0.00598886,2506.7,2506.6,25.69258]
[1749932830008,1.3181,2507.3,2506.8,1.99375]
[1749932830209,0.6263,2507.3,2507.2,0.79739]
[1749932830403,0.6263,2507.3,2507.2,25.68539]
[1749932830610,0.79736,2507.3,2507.2,25.68539]
[1749932831301,0.79736,2507.3,2507.2,24.888]
[1749932834214,0.79736,2507.3,2507.2,25.68539]
[1749932834411,0.79733,2507.4,2507.3,0.79733]
[1749932834612,0.79732,2507.4,2507.3,7.40035]
[1749932834813,0.80328,2507.5,2507.4,0.79732]
[1749932835315,0.80328,2507.5,2507.4,0.6463]
[1749932835711,0.80328,2507.5,2507.4,1.44362]
[1749932835911,0.00598,2507.5,2507.4,1.44362]
[1749932836117,0.00598,2507.5,2507.4,2.70332]
[1749932837517,0.80327,2507.5,2507.4,2.70332]
[1749932838019,0.79739,2507.2,2507.1,3.2078]
[1749932838218,0.79738,2507.3,2507.2,0.79738]
[1749932839218,0.79739,2507.2,2507.1,34.6898]
[1749932839612,0.79739,2507.2,2507.1,35.48722]
[1749932839814,0.79737,2507.3,2507.2,0.79736]
[1749932840019,0.79739,2507.2,2507.1,35.48721]
[1749932840513,0.79738,2507.3,2507.2,0.79738]
[1749932841325,0.79739,2507.2,2507.1,35.48722]
[1749932841513,0.79738,2507.3,2507.2,0.79737]
[1749932843116,0.79739,2507.2,2507.1,35.4872]
[1749932843319,0.79737,2507.3,2507.2,0.79736]
[1749932845822,0.79739,2507.2,2507.1,32.2794]
[1749932847222,1.26078,2507.5,2507.1,31.482]
[1749932847428,0.79734,2507.4,2507.3,0.79732]
[1749932847722,0.79734,2507.4,2507.3,25.67132]
[1749932848620,0.80329,2507.5,2507.4,0.79732]
[1749932849320,0.79732,2507.4,2507.3,25.67134]
[1749932850715,0.00598,2507.5,2507.4,0.79732]
[1749932850918,1.3751,2508.0,2507.9,0.79716]
[1749932851118,2.35492311,2508.6,2508.5,0.79697]
[1749932851317,0.79694,2508.6,2508.5,24.872]
[1749932852519,0.79701,2508.4,2508.3,0.00598886]
[1749932852724,0.6487,2508.5,2507.4,6.601]
[1749932852916,0.79729,2507.5,2507.4,6.601]
[1749932853117,3.2078,2507.7,2507.4,32.26631]
[1749932853417,0.79729,2507.5,2507.4,31.469]
[1749932854319,0.79729,2507.5,2507.4,6.601]
[1749932854525,0.79729,2507.5,2507.4,31.468]
[1749932856018,1.48569,2507.5,2507.4,31.468]
[1749932856618,1.48569,2507.5,2507.4,32.26532]
[1749932856824,0.6884,2507.5,2507.4,32.26532]
[1749932857819,3.2078,2508.0,2507.4,31.468]
[1749932858021,4.00495,2508.0,2507.8,0.79718]
[1749932858228,4.00495,2508.0,2507.9,24.866]
[1749932858924,1.47952,2508.1,2507.9,24.866]
[1749932859130,0.6548,2508.3,2508.2,0.79707]
[1749932859423,0.6548,2508.3,2508.2,32.25807]
[1749932860925,1.45184,2508.3,2508.2,31.461]
[1749932861125,1.45184,2508.3,2508.2,32.25807]
[1749932861126,0.6548,2508.3,2508.2,32.25807]
[1749932863427,0.6824,2508.5,2508.4,0.79701]
[1749932863628,1.77962793,2508.5,2508.4,25.66001]
[1749932864126,1.77962793,2508.5,2508.4,24.863]
[1749932864431,2.57659793,2508.5,2508.4,24.863]
[1749932865029,3.91639793,2508.5,2508.4,24.863]
[1749932866135,0.79704,2508.3,2508.2,0.79707]
[1749932866331,0.79704,2508.3,2508.2,32.25207]
[1749932866728,0.79704,2508.3,2508.2,31.455]
[1749932868238,0.7971,2508.1,2508.0,0.6757]
[1749932868438,0.7971,2508.1,2508.0,31.453]
[1749932868439,0.79711,2508.1,2508.0,31.453]
[1749932869638,0.79711,2508.1,2508.0,32.25013]
[1749932869835,1.99276,2508.1,2507.7,6.594]
[1749932870034,3.2078,2507.8,2507.4,6.594]
[1749932870236,3.2078,2507.5,2507.4,6.594]
[1749932870540,0.79721,2507.8,2507.4,31.452]
[1749932870837,1.89314094,2507.7,2507.6,0.79725]
[1749932871037,1.09590094,2507.7,2507.6,25.65525]
[1749932871241,8.9418,2507.9,2507.6,25.65525]
[1749932871435,1.0958909,2507.8,2507.6,25.65525]
[1749932871636,8.9418,2507.9,2507.6,25.65525]
[1749932871637,1.8931209,2507.7,2507.6,25.65525]
[1749932871837,0.79726,2507.6,2507.5,0.6599]
[1749932872036,0.79726,2507.6,2507.5,32.1119]
[1749932872439,0.79725,2507.7,2507.5,32.90917]
[1749932872646,0.79726,2507.6,2507.5,32.1119]
[1749932873058,0.79726,2507.6,2507.5,0.6599]
[1749932873359,0.79726,2507.6,2507.5,31.451]
[1749932873558,0.79736,2507.3,2507.2,0.00598886]
[1749932873860,0.79735,2507.4,2507.2,32.25435886]
[1749932874059,0.6856,2507.5,2507.2,32.25435886]
[1749932874461,0.79734,2507.4,2507.2,32.25435886]
[1749932874656,0.6856,2507.5,2507.2,31.45698886]
[1749932874861,0.79734,2507.4,2507.2,31.45698886]
[1749932875061,0.79734,2507.4,2507.3,0.79736]
[1749932875263,4.64117,2507.6,2507.5,0.79729]
[1749932875459,4.64117,2507.6,2507.5,25.65529]
[1749932875658,4.64117,2507.6,2507.5,24.858]
[1749932875862,5.73663251,2507.6,2507.5,24.858]
[1749932876065,5.73663251,2507.6,2507.5,25.65529]
[1749932876257,5.73663251,2507.6,2507.5,24.858]
[1749932876459,4.64117,2507.6,2507.5,24.858]
[1749932876664,5.7368666,2507.6,2507.5,24.858]
[1749932877264,5.7368666,2507.6,2507.5,25.65529]
[1749932877465,5.7368666,2507.6,2507.5,24.858]
[1749932878970,0.79736,2507.3,2507.2,6.59998886]
[1749932879158,0.79736,2507.3,2507.2,31.45898886]
[1749932880262,0.79736,2507.3,2507.2,32.25637886]
[1749932880862,0.79736,2507.3,2507.2,31.45898886]
[1749932881270,0.79736,2507.3,2507.2,32.25637886]
[1749932881459,0.79736,2507.3,2507.2,31.45898886]
[1749932883374,0.79736,2507.3,2507.2,31.45998886]